[Event "Titled Tuesday Blitz August 02 Late 2022"]
[White "Bortnyk, Olexandr"]
[Black "Ibarra Jerez, Jose Carlos"]
[WhiteFideId "14120828"]
[BlackFideId "2226332"]
[WhiteElo "2723"]
[BlackElo "2628"]
[Result "1-0"]
[Round "07"]
[TimeControl "180+1"]
[Date "2022.08.02"]
[WhiteClock "0:01:29"]
[BlackClock "0:00:41"]

1. d4 {[%clk 0:03:00]}  g6 {[%clk 0:02:56]} 2. Nc3 {[%clk 0:02:58]}  Bg7 {[%clk 0:02:56]} 3. Bf4 {[%clk 0:02:54]}  d6 {[%clk 0:02:55]} 4. e3 {[%clk 0:02:50]}  Nd7 {[%clk 0:02:55]} 5. h3 {[%clk 0:02:47]}  Ngf6 {[%clk 0:02:54]} 6. Nf3 {[%clk 0:02:43]}  O-O {[%clk 0:02:54]} 7. Bc4 {[%clk 0:02:40]}  b6 {[%clk 0:02:54]} 8. O-O {[%clk 0:02:38]}  Bb7 {[%clk 0:02:55]} 9. a4 {[%clk 0:02:38]}  a6 {[%clk 0:02:54]} 10. Qe2 {[%clk 0:02:37]}  Qe8 {[%clk 0:02:51]} 11. Bh2 {[%clk 0:02:37]}  e5 {[%clk 0:02:47]} 12. dxe5 {[%clk 0:02:38]}  dxe5 {[%clk 0:02:45]} 13. Rfd1 {[%clk 0:02:35]}  Qe7 {[%clk 0:02:45]} 14. Nd2 {[%clk 0:02:16]}  e4 {[%clk 0:02:36]} 15. Bxc7 {[%clk 0:02:11]}  Ne5 {[%clk 0:02:12]} 16. Bxb6 {[%clk 0:02:04]}  Nfd7 {[%clk 0:02:02]} 17. Bd4 {[%clk 0:01:58]}  Qh4 {[%clk 0:02:02]} 18. Bd5 {[%clk 0:01:49]}  Bxd5 {[%clk 0:01:43]} 19. Nxd5 {[%clk 0:01:50]}  Rfe8 {[%clk 0:01:31]} 20. Nc7 {[%clk 0:01:47]}  Rab8 {[%clk 0:01:13]} 21. Nxe8 {[%clk 0:01:46]}  Rxe8 {[%clk 0:01:14]} 22. Nc4 {[%clk 0:01:35]}  Nf3+ {[%clk 0:00:50]} 23. gxf3 {[%clk 0:01:36]}  Qxh3 {[%clk 0:00:49]} 24. Qf1 {[%clk 0:01:36]}  Qf5 {[%clk 0:00:44]} 25. Nd6 {[%clk 0:01:34]}  Qe6 {[%clk 0:00:41]} 26. Nxe8 {[%clk 0:01:29]}  exf3 {[%clk 0:00:42]} 27. Nxg7 {[%clk 0:01:28]}  Qg4+ {[%clk 0:00:42]} 28. Kh2 {[%clk 0:01:29]}  Qg2+ {[%clk 0:00:41]} 29. Qxg2 {[%clk 0:01:29]} 1-0


[Site "https://www.chess.com"]

[Event "Titled Tuesday Blitz August 02 Late 2022"]
[White "Ernst, Sipke"]
[Black "Yoo, Christopher Woojin"]
[WhiteFideId "1004689"]
[BlackFideId "30909694"]
[WhiteElo "2436"]
[BlackElo "2105"]
[Result "0-1"]
[Round "07"]
[TimeControl "180+1"]
[Date "2022.08.02"]
[WhiteClock "0:00:11"]
[BlackClock "0:00:02"]

1. d4 {[%clk 0:03:00]}  Nf6 {[%clk 0:03:00]} 2. c4 {[%clk 0:03:01]}  g6 {[%clk 0:03:00]} 3. Nc3 {[%clk 0:03:01]}  Bg7 {[%clk 0:03:00]} 4. e4 {[%clk 0:03:01]}  d6 {[%clk 0:03:01]} 5. Nf3 {[%clk 0:03:01]}  O-O {[%clk 0:03:01]} 6. Be2 {[%clk 0:03:02]}  e5 {[%clk 0:03:01]} 7. O-O {[%clk 0:03:02]}  h6 {[%clk 0:03:02]} 8. dxe5 {[%clk 0:02:58]}  dxe5 {[%clk 0:03:03]} 9. Qxd8 {[%clk 0:02:57]}  Rxd8 {[%clk 0:03:03]} 10. Nd5 {[%clk 0:02:58]}  Ne8 {[%clk 0:02:46]} 11. Be3 {[%clk 0:02:55]}  Nc6 {[%clk 0:02:44]} 12. Rfd1 {[%clk 0:02:53]}  Bg4 {[%clk 0:02:41]} 13. Rac1 {[%clk 0:02:46]}  Bxf3 {[%clk 0:02:41]} 14. Bxf3 {[%clk 0:02:41]}  Nd4 {[%clk 0:02:41]} 15. Kf1 {[%clk 0:02:40]}  c6 {[%clk 0:02:41]} 16. Nb4 {[%clk 0:02:36]}  Nd6 {[%clk 0:02:33]} 17. Bxd4 {[%clk 0:02:35]}  exd4 {[%clk 0:02:32]} 18. Nd3 {[%clk 0:02:36]}  Re8 {[%clk 0:02:31]} 19. Re1 {[%clk 0:02:35]}  Be5 {[%clk 0:02:05]} 20. g3 {[%clk 0:02:33]}  g5 {[%clk 0:01:57]} 21. Bh5 {[%clk 0:02:23]}  Bg7 {[%clk 0:01:52]} 22. f3 {[%clk 0:02:16]}  Re7 {[%clk 0:01:46]} 23. c5 {[%clk 0:02:14]}  Ne8 {[%clk 0:01:45]} 24. e5 {[%clk 0:02:12]}  Nc7 {[%clk 0:01:43]} 25. f4 {[%clk 0:02:12]}  Nd5 {[%clk 0:01:43]} 26. Re4 {[%clk 0:01:59]}  Ne3+ {[%clk 0:01:38]} 27. Kf2 {[%clk 0:01:57]}  Rd8 {[%clk 0:01:38]} 28. Kf3 {[%clk 0:01:51]}  a5 {[%clk 0:01:18]} 29. h4 {[%clk 0:01:49]}  gxh4 {[%clk 0:01:06]} 30. gxh4 {[%clk 0:01:48]}  Rd5 {[%clk 0:01:02]} 31. Rg1 {[%clk 0:01:42]}  Kf8 {[%clk 0:00:58]} 32. a3 {[%clk 0:01:23]}  f5 {[%clk 0:00:44]} 33. Rxe3 {[%clk 0:01:03]}  dxe3 {[%clk 0:00:44]} 34. Kxe3 {[%clk 0:01:04]}  Red7 {[%clk 0:00:42]} 35. Be2 {[%clk 0:00:35]}  a4 {[%clk 0:00:35]} 36. Rg6 {[%clk 0:00:22]}  Ke8 {[%clk 0:00:34]} 37. Rd6 {[%clk 0:00:22]}  Bf8 {[%clk 0:00:32]} 38. Bh5+ {[%clk 0:00:21]}  Kd8 {[%clk 0:00:32]} 39. Rxd5 {[%clk 0:00:16]}  Rxd5 {[%clk 0:00:27]} 40. Bf7 {[%clk 0:00:16]}  Rd7 {[%clk 0:00:25]} 41. Be6 {[%clk 0:00:16]}  Rg7 {[%clk 0:00:25]} 42. Bxf5 {[%clk 0:00:16]}  Be7 {[%clk 0:00:22]} 43. h5 {[%clk 0:00:16]}  Rg3+ {[%clk 0:00:22]} 44. Ke4 {[%clk 0:00:16]}  Rg2 {[%clk 0:00:14]} 45. Bg6 {[%clk 0:00:16]}  Re2+ {[%clk 0:00:11]} 46. Kd4 {[%clk 0:00:15]}  Bh4 {[%clk 0:00:04]} 47. f5 {[%clk 0:00:13]}  Bf2+ {[%clk 0:00:03]} 48. Kc3 {[%clk 0:00:12]}  Be1+ {[%clk 0:00:02]} 49. Kc4 {[%clk 0:00:11]}  Re4# {[%clk 0:00:02]} 0-1


[Site "https://www.chess.com"]

[Event "Titled Tuesday Blitz August 02 Late 2022"]
[White "Ghaem Maghami, Ehsan"]
[Black "Harvey, Marcus R"]
[WhiteFideId "12500739"]
[BlackFideId "400092"]
[WhiteElo "2627"]
[BlackElo "2485"]
[Result "1-0"]
[Round "07"]
[TimeControl "180+1"]
[Date "2022.08.02"]
[WhiteClock "0:00:52"]
[BlackClock "0:00:11"]

1. c4 {[%clk 0:02:59]}  Nf6 {[%clk 0:02:58]} 2. Nc3 {[%clk 0:02:59]}  e6 {[%clk 0:02:57]} 3. e4 {[%clk 0:03:00]}  d5 {[%clk 0:02:57]} 4. e5 {[%clk 0:03:00]}  d4 {[%clk 0:02:58]} 5. exf6 {[%clk 0:03:00]}  dxc3 {[%clk 0:02:58]} 6. bxc3 {[%clk 0:03:01]}  Qxf6 {[%clk 0:02:58]} 7. Nf3 {[%clk 0:03:01]}  e5 {[%clk 0:02:58]} 8. Bd3 {[%clk 0:03:01]}  Bd7 {[%clk 0:02:44]} 9. O-O {[%clk 0:03:00]}  Bd6 {[%clk 0:02:44]} 10. Be4 {[%clk 0:02:58]}  Bc6 {[%clk 0:02:44]} 11. Qc2 {[%clk 0:02:58]}  Bxe4 {[%clk 0:02:16]} 12. Qxe4 {[%clk 0:02:58]}  Nc6 {[%clk 0:02:17]} 13. Rb1 {[%clk 0:02:41]}  Qg6 {[%clk 0:01:50]} 14. Qxg6 {[%clk 0:02:32]}  hxg6 {[%clk 0:01:51]} 15. d4 {[%clk 0:02:29]}  O-O-O {[%clk 0:01:35]} 16. h3 {[%clk 0:02:09]}  exd4 {[%clk 0:01:26]} 17. cxd4 {[%clk 0:02:08]}  Be7 {[%clk 0:01:27]} 18. Be3 {[%clk 0:02:05]}  Bf6 {[%clk 0:01:24]} 19. d5 {[%clk 0:02:04]}  Na5 {[%clk 0:01:22]} 20. Rfc1 {[%clk 0:02:04]}  b6 {[%clk 0:01:17]} 21. c5 {[%clk 0:02:04]}  Kb7 {[%clk 0:01:02]} 22. d6 {[%clk 0:02:03]}  Rc8 {[%clk 0:00:43]} 23. dxc7 {[%clk 0:01:27]}  Rxc7 {[%clk 0:00:42]} 24. Nd2 {[%clk 0:01:27]}  Rhc8 {[%clk 0:00:33]} 25. Rd1 {[%clk 0:01:19]}  Rc6 {[%clk 0:00:28]} 26. g4 {[%clk 0:01:09]}  Be7 {[%clk 0:00:24]} 27. cxb6 {[%clk 0:00:59]}  axb6 {[%clk 0:00:25]} 28. Ne4 {[%clk 0:00:59]}  Rd8 {[%clk 0:00:12]} 29. Rxd8 {[%clk 0:00:58]}  Bxd8 {[%clk 0:00:13]} 30. Rd1 {[%clk 0:00:58]}  Be7 {[%clk 0:00:12]} 31. Bf4 {[%clk 0:00:56]}  Kc8 {[%clk 0:00:12]} 32. Bd6 {[%clk 0:00:54]}  Bd8 {[%clk 0:00:11]} 33. Bb4 {[%clk 0:00:53]}  Nc4 {[%clk 0:00:11]} 34. Rd4 {[%clk 0:00:53]}  Bf6 {[%clk 0:00:11]} 35. Rxc4 {[%clk 0:00:52]} 1-0


[Site "https://www.chess.com"]

[Event "Titled Tuesday Blitz August 02 Late 2022"]
[White "Gschnitzer, Adrian"]
[Black "Lin, Dachey"]
[WhiteFideId "1270337"]
[BlackFideId "2029650"]
[WhiteElo "2294"]
[BlackElo "2313"]
[Result "0-1"]
[Round "07"]
[TimeControl "180+1"]
[Date "2022.08.02"]
[WhiteClock "0:00:24"]
[BlackClock "0:01:24"]

1. d4 {[%clk 0:03:00]}  g6 {[%clk 0:03:00]} 2. e4 {[%clk 0:03:00]}  Bg7 {[%clk 0:03:00]} 3. Nc3 {[%clk 0:03:00]}  d5 {[%clk 0:03:00]} 4. Nf3 {[%clk 0:03:00]}  c6 {[%clk 0:03:00]} 5. h3 {[%clk 0:03:00]}  dxe4 {[%clk 0:03:01]} 6. Nxe4 {[%clk 0:03:01]}  Nd7 {[%clk 0:03:01]} 7. Qe2 {[%clk 0:02:58]}  Qc7 {[%clk 0:02:58]} 8. g3 {[%clk 0:02:58]}  Ngf6 {[%clk 0:02:58]} 9. Bg2 {[%clk 0:02:55]}  O-O {[%clk 0:02:58]} 10. Bf4 {[%clk 0:02:54]}  Qb6 {[%clk 0:02:52]} 11. O-O-O {[%clk 0:02:53]}  Nxe4 {[%clk 0:02:50]} 12. Qxe4 {[%clk 0:02:53]}  Nf6 {[%clk 0:02:49]} 13. Qe2 {[%clk 0:02:52]}  Nd5 {[%clk 0:02:49]} 14. Bd2 {[%clk 0:02:44]}  c5 {[%clk 0:02:44]} 15. Ne5 {[%clk 0:02:34]}  Rd8 {[%clk 0:02:33]} 16. dxc5 {[%clk 0:02:22]}  Qxc5 {[%clk 0:02:26]} 17. Be3 {[%clk 0:02:13]}  Qa5 {[%clk 0:01:58]} 18. Nc4 {[%clk 0:01:54]}  Qxa2 {[%clk 0:01:49]} 19. Rxd5 {[%clk 0:01:45]}  Be6 {[%clk 0:01:44]} 20. Rhd1 {[%clk 0:01:08]}  Bxd5 {[%clk 0:01:29]} 21. Rxd5 {[%clk 0:01:06]}  Rxd5 {[%clk 0:01:27]} 22. Bxd5 {[%clk 0:01:06]}  Qa1+ {[%clk 0:01:27]} 23. Kd2 {[%clk 0:01:03]}  Rd8 {[%clk 0:01:27]} 24. Qd3 {[%clk 0:00:23]}  e6 {[%clk 0:01:25]} 25. Ke2 {[%clk 0:00:24]}  Rxd5 {[%clk 0:01:24]} 0-1


[Site "https://www.chess.com"]

[Event "Titled Tuesday Blitz August 02 Late 2022"]
[White "Hakobyan, Aram"]
[Black "Vivekananthan, Anish"]
[WhiteFideId "13306677"]
[BlackFideId "2090775"]
[WhiteElo "2557"]
[BlackElo "2712"]
[Result "1-0"]
[Round "07"]
[TimeControl "180+1"]
[Date "2022.08.02"]
[WhiteClock "0:01:45"]
[BlackClock "0:00:20"]

1. e4 {[%clk 0:03:00]}  c6 {[%clk 0:02:57]} 2. d4 {[%clk 0:02:59]}  d5 {[%clk 0:02:58]} 3. exd5 {[%clk 0:03:00]}  cxd5 {[%clk 0:02:57]} 4. Nf3 {[%clk 0:03:01]}  Nf6 {[%clk 0:02:56]} 5. c3 {[%clk 0:03:02]}  Nc6 {[%clk 0:02:55]} 6. Ne5 {[%clk 0:03:02]}  Bd7 {[%clk 0:02:54]} 7. Nd2 {[%clk 0:02:59]}  e6 {[%clk 0:02:53]} 8. Bd3 {[%clk 0:02:59]}  Bd6 {[%clk 0:02:51]} 9. f4 {[%clk 0:02:59]}  Ne7 {[%clk 0:02:41]} 10. O-O {[%clk 0:02:59]}  a6 {[%clk 0:02:32]} 11. Qe2 {[%clk 0:02:59]}  Qb6 {[%clk 0:02:07]} 12. a4 {[%clk 0:02:59]}  O-O {[%clk 0:01:51]} 13. Rf3 {[%clk 0:02:57]}  Ng6 {[%clk 0:01:38]} 14. Bxg6 {[%clk 0:02:42]}  hxg6 {[%clk 0:01:15]} 15. Rh3 {[%clk 0:02:42]}  Rfd8 {[%clk 0:00:58]} 16. g4 {[%clk 0:02:05]}  Be8 {[%clk 0:00:53]} 17. Qf2 {[%clk 0:01:56]}  Bxe5 {[%clk 0:00:50]} 18. fxe5 {[%clk 0:01:56]}  Nxg4 {[%clk 0:00:40]} 19. Qh4 {[%clk 0:01:56]}  f5 {[%clk 0:00:25]} 20. Nf3 {[%clk 0:01:48]}  Kf8 {[%clk 0:00:20]} 21. Qh8+ {[%clk 0:01:46]}  Ke7 {[%clk 0:00:20]} 22. Qxg7+ {[%clk 0:01:44]}  Bf7 {[%clk 0:00:20]} 23. Bg5+ {[%clk 0:01:45]} 1-0


[Site "https://www.chess.com"]

[Event "Titled Tuesday Blitz August 02 Late 2022"]
[White "Holt, Conrad"]
[Black "Paravyan, David"]
[WhiteFideId "2034387"]
[BlackFideId "4194985"]
[WhiteElo "2586"]
[BlackElo "2569"]
[Result "1/2-1/2"]
[Round "07"]
[TimeControl "180+1"]
[Date "2022.08.02"]
[WhiteClock "0:00:03"]
[BlackClock "0:00:06"]

1. d4 {[%clk 0:03:00]}  Nf6 {[%clk 0:02:59]} 2. c4 {[%clk 0:03:00]}  g6 {[%clk 0:03:00]} 3. Nc3 {[%clk 0:03:01]}  d5 {[%clk 0:03:00]} 4. e3 {[%clk 0:02:58]}  Bg7 {[%clk 0:03:00]} 5. Qa4+ {[%clk 0:02:58]}  Bd7 {[%clk 0:02:54]} 6. Qb3 {[%clk 0:02:57]}  dxc4 {[%clk 0:02:54]} 7. Bxc4 {[%clk 0:02:57]}  O-O {[%clk 0:02:55]} 8. Nf3 {[%clk 0:02:56]}  c5 {[%clk 0:02:55]} 9. Ne5 {[%clk 0:02:52]}  e6 {[%clk 0:02:42]} 10. Qxb7 {[%clk 0:02:43]}  cxd4 {[%clk 0:02:42]} 11. exd4 {[%clk 0:02:36]}  Qb6 {[%clk 0:02:35]} 12. Qxb6 {[%clk 0:02:26]}  axb6 {[%clk 0:02:36]} 13. Nxd7 {[%clk 0:02:23]}  Nfxd7 {[%clk 0:02:31]} 14. d5 {[%clk 0:02:17]}  Ne5 {[%clk 0:02:31]} 15. Be2 {[%clk 0:02:17]}  exd5 {[%clk 0:02:25]} 16. Nxd5 {[%clk 0:02:16]}  Nbc6 {[%clk 0:02:25]} 17. Nxb6 {[%clk 0:02:02]}  Rab8 {[%clk 0:02:01]} 18. Be3 {[%clk 0:01:58]}  Nb4 {[%clk 0:02:02]} 19. O-O-O {[%clk 0:01:22]}  Nxa2+ {[%clk 0:01:16]} 20. Kb1 {[%clk 0:01:22]}  Nb4 {[%clk 0:01:15]} 21. Bc5 {[%clk 0:01:21]}  Rfe8 {[%clk 0:01:00]} 22. Bb5 {[%clk 0:01:20]}  Re6 {[%clk 0:00:34]} 23. Na4 {[%clk 0:01:02]}  h5 {[%clk 0:00:22]} 24. Bxb4 {[%clk 0:00:52]}  Rxb5 {[%clk 0:00:21]} 25. Bc3 {[%clk 0:00:44]}  Nc4 {[%clk 0:00:21]} 26. Bxg7 {[%clk 0:00:28]}  Kxg7 {[%clk 0:00:22]} 27. Rc1 {[%clk 0:00:28]}  Nd2+ {[%clk 0:00:20]} 28. Kc2 {[%clk 0:00:28]}  Nb3 {[%clk 0:00:18]} 29. Rce1 {[%clk 0:00:24]}  Nd4+ {[%clk 0:00:13]} 30. Kb1 {[%clk 0:00:22]}  Ra6 {[%clk 0:00:13]} 31. Nc3 {[%clk 0:00:19]}  Rba5 {[%clk 0:00:14]} 32. Kc1 {[%clk 0:00:19]}  Rd6 {[%clk 0:00:09]} 33. Rd1 {[%clk 0:00:15]}  Ra1+ {[%clk 0:00:04]} 34. Kd2 {[%clk 0:00:15]}  Nf5+ {[%clk 0:00:02]} 35. Kc2 {[%clk 0:00:13]}  Raxd1 {[%clk 0:00:02]} 36. Rxd1 {[%clk 0:00:12]}  Rb6 {[%clk 0:00:03]} 37. g3 {[%clk 0:00:11]}  h4 {[%clk 0:00:03]} 38. g4 {[%clk 0:00:07]}  Ne7 {[%clk 0:00:02]} 39. Rd4 {[%clk 0:00:06]}  h3 {[%clk 0:00:02]} 40. Rd3 {[%clk 0:00:06]}  Rb4 {[%clk 0:00:01]} 41. Rg3 {[%clk 0:00:06]}  Ng8 {[%clk 0:00:01]} 42. f3 {[%clk 0:00:06]}  f5 {[%clk 0:00:01]} 43. gxf5 {[%clk 0:00:06]}  Ne7 {[%clk 0:00:01]} 44. fxg6 {[%clk 0:00:07]}  Rh4 {[%clk 0:00:01]} 45. Ne4 {[%clk 0:00:07]}  Nf5 {[%clk 0:00:01]} 46. Rg4 {[%clk 0:00:06]}  Nd4+ {[%clk 0:00:01]} 47. Kd3 {[%clk 0:00:06]}  Rxg4 {[%clk 0:00:02]} 48. fxg4 {[%clk 0:00:06]}  Nf3 {[%clk 0:00:03]} 49. Nf2 {[%clk 0:00:06]}  Nxh2 {[%clk 0:00:03]} 50. Ke4 {[%clk 0:00:05]}  Kxg6 {[%clk 0:00:04]} 51. Kf4 {[%clk 0:00:04]}  Nf1 {[%clk 0:00:02]} 52. Nxh3 {[%clk 0:00:04]}  Nd2 {[%clk 0:00:03]} 53. b4 {[%clk 0:00:04]}  Nc4 {[%clk 0:00:04]} 54. Nf2 {[%clk 0:00:04]}  Kf6 {[%clk 0:00:03]} 55. Ne4+ {[%clk 0:00:03]}  Ke6 {[%clk 0:00:04]} 56. g5 {[%clk 0:00:04]}  Nb6 {[%clk 0:00:04]} 57. Nc3 {[%clk 0:00:04]}  Nc4 {[%clk 0:00:04]} 58. Ke4 {[%clk 0:00:04]}  Nd6+ {[%clk 0:00:04]} 59. Kf4 {[%clk 0:00:04]}  Nc4 {[%clk 0:00:04]} 60. b5 {[%clk 0:00:05]}  Ne5 {[%clk 0:00:02]} 61. Ke4 {[%clk 0:00:05]}  Nf7 {[%clk 0:00:03]} 62. g6 {[%clk 0:00:04]}  Nd6+ {[%clk 0:00:03]} 63. Kf4 {[%clk 0:00:03]}  Nxb5 {[%clk 0:00:04]} 64. Kg5 {[%clk 0:00:03]}  Nxc3 {[%clk 0:00:03]} 65. Kh6 {[%clk 0:00:03]}  Nd5 {[%clk 0:00:04]} 66. g7 {[%clk 0:00:03]}  Nf6 {[%clk 0:00:05]} 67. Kg6 {[%clk 0:00:04]}  Ng8 {[%clk 0:00:05]} 68. Kh7 {[%clk 0:00:03]}  Kf7 {[%clk 0:00:06]} 69. Kh8 {[%clk 0:00:04]}  Ne7 {[%clk 0:00:06]} 70. g8=Q+ {[%clk 0:00:03]}  Nxg8 {[%clk 0:00:06]} 1/2-1/2


[Site "https://www.chess.com"]

[Event "Titled Tuesday Blitz August 02 Late 2022"]
[White "Izoria, Zviad"]
[Black "Tanenbaum, Zachary"]
[WhiteFideId "13601733"]
[BlackFideId "2060850"]
[WhiteElo "2626"]
[BlackElo "2175"]
[Result "1-0"]
[Round "07"]
[TimeControl "180+1"]
[Date "2022.08.02"]
[WhiteClock "0:00:39"]
[BlackClock "0:00:35"]

1. Nf3 {[%clk 0:03:00]}  d5 {[%clk 0:02:59]} 2. d4 {[%clk 0:02:59]}  Nf6 {[%clk 0:02:59]} 3. c4 {[%clk 0:02:58]}  dxc4 {[%clk 0:03:00]} 4. e3 {[%clk 0:02:58]}  a6 {[%clk 0:03:00]} 5. Bxc4 {[%clk 0:02:57]}  e6 {[%clk 0:03:00]} 6. O-O {[%clk 0:02:56]}  c5 {[%clk 0:03:01]} 7. Nc3 {[%clk 0:02:53]}  b5 {[%clk 0:03:01]} 8. Be2 {[%clk 0:02:53]}  Bb7 {[%clk 0:02:59]} 9. dxc5 {[%clk 0:02:53]}  Bxc5 {[%clk 0:02:59]} 10. Qxd8+ {[%clk 0:02:50]}  Kxd8 {[%clk 0:03:00]} 11. Nd2 {[%clk 0:02:49]}  Nbd7 {[%clk 0:02:59]} 12. Nb3 {[%clk 0:02:50]}  Bb6 {[%clk 0:02:58]} 13. a4 {[%clk 0:02:49]}  b4 {[%clk 0:02:58]} 14. a5 {[%clk 0:02:49]}  Nc5 {[%clk 0:02:57]} 15. Nxc5 {[%clk 0:02:31]}  Bxc5 {[%clk 0:02:58]} 16. Na4 {[%clk 0:02:31]}  Bd6 {[%clk 0:02:58]} 17. f3 {[%clk 0:02:23]}  Rc8 {[%clk 0:02:50]} 18. e4 {[%clk 0:02:18]}  Ke7 {[%clk 0:02:48]} 19. Be3 {[%clk 0:02:10]}  Rc6 {[%clk 0:02:29]} 20. Rfd1 {[%clk 0:01:52]}  e5 {[%clk 0:02:20]} 21. b3 {[%clk 0:01:41]}  Rhc8 {[%clk 0:02:09]} 22. Nb6 {[%clk 0:01:38]}  R8c7 {[%clk 0:01:58]} 23. Bc4 {[%clk 0:01:33]}  Bc5 {[%clk 0:01:55]} 24. Kf2 {[%clk 0:01:31]}  Bxe3+ {[%clk 0:01:51]} 25. Kxe3 {[%clk 0:01:32]}  Bc8 {[%clk 0:01:21]} 26. Rd3 {[%clk 0:01:29]}  Be6 {[%clk 0:01:18]} 27. Bxa6 {[%clk 0:01:24]}  Rc3 {[%clk 0:01:14]} 28. Bc4 {[%clk 0:01:22]}  Bxc4 {[%clk 0:01:03]} 29. Nxc4 {[%clk 0:01:17]}  Rxd3+ {[%clk 0:00:57]} 30. Kxd3 {[%clk 0:01:16]}  Nd7 {[%clk 0:00:58]} 31. a6 {[%clk 0:00:49]}  Nc5+ {[%clk 0:00:56]} 32. Kc2 {[%clk 0:00:48]}  Ra7 {[%clk 0:00:54]} 33. Ra5 {[%clk 0:00:44]}  Nxa6 {[%clk 0:00:50]} 34. Rxe5+ {[%clk 0:00:43]}  Kf6 {[%clk 0:00:48]} 35. Ra5 {[%clk 0:00:42]}  Ra8 {[%clk 0:00:42]} 36. Nb6 {[%clk 0:00:40]}  Ra7 {[%clk 0:00:40]} 37. Nd5+ {[%clk 0:00:40]}  Ke6 {[%clk 0:00:37]} 38. Rxa6+ {[%clk 0:00:39]}  Rxa6 {[%clk 0:00:35]} 39. Nc7+ {[%clk 0:00:39]} 1-0


[Site "https://www.chess.com"]

[Event "Titled Tuesday Blitz August 02 Late 2022"]
[White "Koelle, Tobias"]
[Black "Zhigalko, Sergei"]
[WhiteFideId "16207378"]
[BlackFideId "13502956"]
[WhiteElo "2541"]
[BlackElo "2662"]
[Result "0-1"]
[Round "07"]
[TimeControl "180+1"]
[Date "2022.08.02"]
[WhiteClock "0:00:15"]
[BlackClock "0:00:08"]

1. d4 {[%clk 0:03:00]}  Nf6 {[%clk 0:03:00]} 2. c4 {[%clk 0:03:00]}  e6 {[%clk 0:03:00]} 3. Nf3 {[%clk 0:03:00]}  b6 {[%clk 0:03:00]} 4. g3 {[%clk 0:03:00]}  Ba6 {[%clk 0:03:01]} 5. b3 {[%clk 0:03:00]}  Bb4+ {[%clk 0:03:01]} 6. Bd2 {[%clk 0:03:00]}  Be7 {[%clk 0:03:01]} 7. Bg2 {[%clk 0:03:00]}  c6 {[%clk 0:03:01]} 8. Bc3 {[%clk 0:03:00]}  d5 {[%clk 0:03:02]} 9. Nbd2 {[%clk 0:03:00]}  Nbd7 {[%clk 0:03:03]} 10. O-O {[%clk 0:03:00]}  O-O {[%clk 0:03:03]} 11. Re1 {[%clk 0:02:58]}  c5 {[%clk 0:03:02]} 12. e4 {[%clk 0:02:58]}  Nxe4 {[%clk 0:03:03]} 13. Nxe4 {[%clk 0:02:59]}  dxe4 {[%clk 0:03:04]} 14. Rxe4 {[%clk 0:02:59]}  Bb7 {[%clk 0:03:04]} 15. Re2 {[%clk 0:03:00]}  Bf6 {[%clk 0:03:03]} 16. Rd2 {[%clk 0:02:58]}  Qc7 {[%clk 0:03:01]} 17. Qc2 {[%clk 0:02:57]}  Rad8 {[%clk 0:02:57]} 18. Rad1 {[%clk 0:02:57]}  cxd4 {[%clk 0:02:37]} 19. Bxd4 {[%clk 0:02:54]}  h6 {[%clk 0:02:35]} 20. h4 {[%clk 0:02:44]}  Bc6 {[%clk 0:02:32]} 21. Ne1 {[%clk 0:02:23]}  Bxg2 {[%clk 0:02:26]} 22. Nxg2 {[%clk 0:02:23]}  Bxd4 {[%clk 0:02:16]} 23. Rxd4 {[%clk 0:02:24]}  Ne5 {[%clk 0:02:13]} 24. Qe2 {[%clk 0:02:23]}  Nc6 {[%clk 0:02:09]} 25. Rxd8 {[%clk 0:02:20]}  Rxd8 {[%clk 0:02:10]} 26. Nf4 {[%clk 0:02:18]}  Nd4 {[%clk 0:02:06]} 27. Qg4 {[%clk 0:02:12]}  Qc6 {[%clk 0:01:39]} 28. Rd3 {[%clk 0:01:57]}  Qe4 {[%clk 0:01:28]} 29. Re3 {[%clk 0:01:27]}  Qb1+ {[%clk 0:01:12]} 30. Kg2 {[%clk 0:01:28]}  Nf5 {[%clk 0:00:49]} 31. Re2 {[%clk 0:01:14]}  Rd1 {[%clk 0:00:45]} 32. Qf3 {[%clk 0:00:45]}  Rh1 {[%clk 0:00:33]} 33. Qa8+ {[%clk 0:00:40]}  Kh7 {[%clk 0:00:33]} 34. Kf3 {[%clk 0:00:27]}  Nd4+ {[%clk 0:00:28]} 35. Ke3 {[%clk 0:00:27]}  Nxe2 {[%clk 0:00:27]} 36. Nxe2 {[%clk 0:00:27]}  Re1 {[%clk 0:00:23]} 37. Qf3 {[%clk 0:00:15]}  Qxa2 {[%clk 0:00:20]} 38. Qe4+ {[%clk 0:00:13]}  f5 {[%clk 0:00:20]} 39. Qd3 {[%clk 0:00:13]}  a5 {[%clk 0:00:10]} 40. Kf3 {[%clk 0:00:13]}  Rxe2 {[%clk 0:00:06]} 41. Qxe2 {[%clk 0:00:14]}  Qxe2+ {[%clk 0:00:03]} 42. Kxe2 {[%clk 0:00:15]}  e5 {[%clk 0:00:04]} 43. Ke3 {[%clk 0:00:15]}  g5 {[%clk 0:00:04]} 44. hxg5 {[%clk 0:00:14]}  hxg5 {[%clk 0:00:05]} 45. f3 {[%clk 0:00:14]}  Kg6 {[%clk 0:00:05]} 46. g4 {[%clk 0:00:14]}  Kf6 {[%clk 0:00:05]} 47. Kf2 {[%clk 0:00:10]}  e4 {[%clk 0:00:04]} 48. Ke3 {[%clk 0:00:09]}  exf3 {[%clk 0:00:04]} 49. Kxf3 {[%clk 0:00:10]}  Ke5 {[%clk 0:00:03]} 50. gxf5 {[%clk 0:00:09]}  Kxf5 {[%clk 0:00:04]} 51. Ke3 {[%clk 0:00:09]}  Ke5 {[%clk 0:00:05]} 52. Kd3 {[%clk 0:00:09]}  g4 {[%clk 0:00:05]} 53. Ke3 {[%clk 0:00:09]}  g3 {[%clk 0:00:05]} 54. c5 {[%clk 0:00:10]}  bxc5 {[%clk 0:00:05]} 55. Kf3 {[%clk 0:00:10]}  Kd4 {[%clk 0:00:06]} 56. b4 {[%clk 0:00:10]}  cxb4 {[%clk 0:00:06]} 57. Ke2 {[%clk 0:00:10]}  b3 {[%clk 0:00:07]} 58. Kf3 {[%clk 0:00:11]}  b2 {[%clk 0:00:07]} 59. Kg2 {[%clk 0:00:12]}  b1=Q {[%clk 0:00:08]} 60. Kf3 {[%clk 0:00:13]}  Qd3+ {[%clk 0:00:08]} 61. Kg2 {[%clk 0:00:14]}  a4 {[%clk 0:00:07]} 62. Kh1 {[%clk 0:00:14]}  Qd2 {[%clk 0:00:07]} 63. Kg1 {[%clk 0:00:14]}  Qf2+ {[%clk 0:00:08]} 64. Kh1 {[%clk 0:00:15]}  Qh2# {[%clk 0:00:08]} 0-1


[Site "https://www.chess.com"]

[Event "Titled Tuesday Blitz August 02 Late 2022"]
[White "Lobanov, Sergei"]
[Black "Weisz, Bryan"]
[WhiteFideId "24183750"]
[BlackFideId "30934133"]
[WhiteElo "2524"]
[BlackElo "2244"]
[Result "1-0"]
[Round "07"]
[TimeControl "180+1"]
[Date "2022.08.02"]
[WhiteClock "0:01:34"]
[BlackClock "0:01:08"]

1. Nf3 {[%clk 0:03:00]}  d5 {[%clk 0:02:59]} 2. e3 {[%clk 0:03:00]}  c5 {[%clk 0:02:54]} 3. b3 {[%clk 0:03:00]}  Nc6 {[%clk 0:02:52]} 4. Bb5 {[%clk 0:02:57]}  f6 {[%clk 0:02:48]} 5. Bxc6+ {[%clk 0:02:51]}  bxc6 {[%clk 0:02:48]} 6. d4 {[%clk 0:02:50]}  cxd4 {[%clk 0:02:46]} 7. exd4 {[%clk 0:02:50]}  Bg4 {[%clk 0:02:38]} 8. Ba3 {[%clk 0:02:48]}  e5 {[%clk 0:02:20]} 9. Bxf8 {[%clk 0:02:45]}  Kxf8 {[%clk 0:02:20]} 10. dxe5 {[%clk 0:02:44]}  fxe5 {[%clk 0:02:10]} 11. O-O {[%clk 0:02:15]}  e4 {[%clk 0:02:07]} 12. Qd4 {[%clk 0:01:56]}  Bxf3 {[%clk 0:01:46]} 13. gxf3 {[%clk 0:01:57]}  Qg5+ {[%clk 0:01:43]} 14. Kh1 {[%clk 0:01:57]}  Qh5 {[%clk 0:01:41]} 15. Nd2 {[%clk 0:01:54]}  exf3 {[%clk 0:01:34]} 16. Qc5+ {[%clk 0:01:45]}  Ne7 {[%clk 0:01:32]} 17. Rae1 {[%clk 0:01:45]}  Re8 {[%clk 0:01:32]} 18. Re3 {[%clk 0:01:44]}  g5 {[%clk 0:01:08]} 19. Rfe1 {[%clk 0:01:34]} 1-0


[Site "https://www.chess.com"]